Cogmind - Beta 16 @@@ ROGUE MODE // 2026.02.08 @ 05:21:11 Player: Kuroshyup Result: Destroyed by 52-ZMH(R) with Subdweller Laser Performance ------------- Evolutions (0) 0 Regions Visited (3) 600 Robots Destroyed (28) 140 Value Destroyed (600) 600 Prototype IDs (2) 40 Alien Tech Used (0) 0 Bonus (0) 0 TOTAL SCORE: 1380 Bonus ------- None Cogmind --------- Core Integrity 0/250 Matter 280/300 Energy 240/250 System Corruption 0% Temperature Cool (6) Movement Treading (160) Location -10/Subcaves Parts ------- > --- POWER (1) -------- Ion Engine > --- PROPULSION (2) --- Light Treads Light Treads > --- UTILITY (2) ------ Large Storage Unit Light Armor Plating > --- WEAPON (2) ------- Medium Laser Medium Laser > --- INVENTORY (15) --- Ion Engine Light Treads Aluminum Leg Aluminum Leg Aluminum Leg Improved Heat Sink Large Storage Unit High-capacity Battery (250) High-capacity Battery (250) Signal Interpreter Targeting Computer Power Shielding Beam Cannon Makeshift Sword Peak State ------------ > --- POWER ------------ Light Ion Engine > --- PROPULSION ------- Light Treads Light Treads > --- UTILITY ---------- Improved Heat Sink Large Storage Unit > --- WEAPON ----------- Medium Laser Small Laser > --- INVENTORY -------- Light Treads Light Treads Aluminum Leg Aluminum Leg Wheel Wheel Compact Wheel Compact Wheel Compact Wheel Compact Wheel Large Battery Light Assault Rifle Light Assault Rifle Light Assault Rifle [Rating: 10] Favorites ----------- Power Light Ion Engine Engine Light Ion Engine Propulsion Light Treads Treads Light Treads Leg Aluminum Leg Wheel Compact Wheel Utility Large Storage Unit Device Improved Heat Sink Storage Large Storage Unit Protection Light Armor Plating Weapon Medium Laser Energy Gun Medium Laser Ballistic Gun Light Assault Rifle Build | -11 -10 -10 -10 ------- Run | Yrd Mat Min Sub Slots Evolved . | . . . . Power . | . . . . Propulsion . | . . . . Utility . | . . . . Weapon . | . . . . Parts Attached 22 | 6 12 2 2 Power 3 | 1 1 1 . Engine 3 | 1 1 1 . Core . | . . . . Reactor . | . . . . Propulsion 9 | 3 5 . 1 Treads 4 | . 3 . 1 Leg 2 | 2 . . . Wheel 3 | 1 2 . . Hover . | . . . . Flight . | . . . . Utility 3 | . 2 . 1 Device 1 | . 1 . . Storage 1 | . 1 . . Processor . | . . . . Hackware . | . . . . Protection 1 | . . . 1 Artifact . | . . . . Weapon 7 | 2 4 1 . Energy Gun 5 | . 4 1 . Energy Cannon . | . . . . Ballistic Gun 2 | 2 . . . Ballistic Cannon . | . . . . Launcher . | . . . . Special Weapon . | . . . . Impact Weapon . | . . . . Slashing Weapon . | . . . . Piercing Weapon . | . . . . Special Melee Weapon . | . . . . Unidentified Prototypes . | . . . . Parts Lost 5 | . 4 1 . Power 2 | . 2 . . Propulsion 1 | . 1 . . Utility . | . . . . Weapon 2 | . 1 1 . Highest Loss Streak 1 | . 1 1 . To Critical Strikes . | . . . . Average Backups 13 | 2 13 13 14 Power 1 | . 1 1 1 Propulsion 5 | 1 6 4 4 Utility 4 | . 3 7 7 Weapon 2 | . 2 1 2 Tool/Special . | . . . . Unused Backups 20 | . 10 . 10 Power 1 | . . . 1 Propulsion 5 | . 4 . 1 Utility 7 | . 1 . 6 Weapon 7 | . 5 . 2 Tool/Special . | . . . . Average Slot Usage (%) 97 | . 96 100 100 Engine 13 | . 13 14 14 Treads 26 | . 24 28 28 Wheel 1 | . 2 . . Device 12 | . 11 14 7 Storage 13 | . 13 14 14 Energy Gun 26 | . 24 28 28 Ballistic Gun 1 | . 3 . . Peak Build Rating 10 | 5 10 10 10 Average Rating 9 | 3 9 10 8 On Entrance 6 | . 5 9 10 Avg Prop Armor Cover (%) . | . . . . Naked Turns . | . . . . Heaviest Build 32 | 6 28 30 32 Greatest Support 40 | 20 40 40 40 Greatest Overweight (x) 1 | . 1 . . Average Overweight (x) . | . . . . Largest Inventory Capacity 15 | 5 15 15 15 Average Capacity 14 | 5 14 15 15 Most Carried 15 | 4 15 14 14 Average Carried 13 | 2 14 13 14 Final Capacity 15 | 5 15 15 15 Final Carried 15 | 3 15 14 14 Class Distribution -------------------- 100% | Mutant Dominant Class ---------------- Mutant | -10/Materials Mutant | -10/Mines Mutant | -10/Subcaves Resources | -11 -10 -10 -10 ----------- Run | Yrd Mat Min Sub Matter Collected 452 | 270 162 20 . Remotely . | . . . . Salvage Created 712 | 43 521 104 44 Parts 50 | . 42 8 . Haulers Intercepted . | . . . . Recyclers Shooed . | . . . . Parts Field Recycled . | . . . . Retrieved Matter . | . . . . Parts Self-Destructed 1 | . . . 1 Prevented . | . . . . Parts Restored . | . . . . Kills | -11 -10 -10 -10 ------- Run | Yrd Mat Min Sub Combat Hostiles Destroyed 23 | 1 17 4 1 Guns 23 | 1 17 4 1 Classes Destroyed 5 | 1 3 . 1 Worker 2 | . 1 1 . Watcher 3 | . 3 . . Swarmer 11 | . 8 3 . Grunt 11 | 1 9 1 . Subdweller 1 | . . . 1 Best Kill Streak 5 | 1 5 3 1 Combat Bots Only 5 | 1 5 3 1 Max Kills in Single Turn 1 | 1 1 1 1 Gunslinging . | . . . . Exploded . | . . . . Melee . | . . . . Uniques/NPCs Destroyed . | . . . . Combat | -11 -10 -10 -10 -------- Run | Yrd Mat Min Sub Hostile Shots Fired 138 | 6 115 8 9 Missed 36 | 1 30 4 1 Hits 102 | 5 85 4 8 Projectile 102 | 5 85 4 8 Critical Strikes 2 | . 1 . 1 Damage Taken 1121 | 58 849 46 168 Core 250 | 24 164 20 42 Absorbed by Shields . | . . . . Core Remaining (%) 90 | 90 . . . Volleys Fired 74 | 5 56 9 4 Largest 2 | 2 2 2 2 Hottest 100 | 40 100 100 100 Shots Fired 144 | 10 108 18 8 Gun 144 | 10 108 18 8 Cannon . | . . . . Launcher . | . . . . Special . | . . . . Kinetic 40 | 10 30 . . Thermal 104 | . 78 18 8 Explosive . | . . . . Electromagnetic . | . . . . Robot Hit Streak 10 | 2 10 10 5 Robot Miss Streak 5 | 5 4 2 1 Penetration Max . | . . . . Secondary Targets 7 | . 6 1 . Max Gunslinging Chain 1 | . 1 1 . Shots Hit Robots 84 | 3 62 12 7 Core Hits 44 | 2 35 6 1 Critical Kills . | . . . . Critical Parts Destroyed . | . . . . Critical Strikes 7 | . 5 1 1 Burn 7 | . 5 1 1 Melee Attacks . | . . . . Impact . | . . . . Slashing . | . . . . Piercing . | . . . . Sneak Attacks . | . . . . Combat Hostiles . | . . . . Follow-up Attacks . | . . . . Damage Inflicted 1040 | 32 769 153 86 Guns 1040 | 32 769 153 86 Cannons . | . . . . Explosions . | . . . . Melee . | . . . . Ramming . | . . . . Kinetic 189 | 32 157 . . Thermal 851 | . 612 153 86 Explosive . | . . . . Electromagnetic . | . . . . Impact . | . . . . Slashing . | . . . . Piercing . | . . . . Highest Corruption . | . . . . Average Corruption . | . . . . Corruption Purged . | . . . . Corruption Blocked . | . . . . Overload Shots . | . . . . Overflow Damage . | . . . . Projectiles . | . . . . Explosions . | . . . . Melee . | . . . . Knockbacks . | . . . . Impact . | . . . . Kinetic . | . . . . Secondary . | . . . . Self-Inflicted Damage . | . . . . Shots . | . . . . Rammed . | . . . . Targets Rammed . | . . . . Kicked . | . . . . Crushed . | . . . . Highest Temperature 166 | 6 166 5 8 Average Temperature 39 | 6 47 3 4 Received Heat Transfer 333 | 30 249 6 48 Siege Activations . | . . . . Martial Activations . | . . . . Shielding Activations . | . . . . Robots Disrupted . | . . . . Combat Hostiles . | . . . . Robots Corrupted . | . . . . Combat Hostiles . | . . . . Parts Fried . | . . . . Impact Corruptions . | . . . . Robots Melted . | . . . . Combat Hostiles . | . . . . Parts Melted 5 | . 3 1 1 Heat Transferred 2974 | . 2123 518 333 Parts Sabotaged . | . . . . Parts Stolen . | . . . . Parts Stripped . | . . . . Power Chain Reactions . | . . . . Alert | -11 -10 -10 -10 ------- Run | Yrd Mat Min Sub Maximum Alert Level . | . . . . Low Security (%) 100 | 100 100 100 . Level 1 . | . . . . Level 2 . | . . . . Level 3 . | . . . . Level 4 . | . . . . Level 5 . | . . . . High Security . | . . . . Max Security . | . . . . Peak Influence 139 | 20 139 50 . Initial 48 | . 13 48 . Average 26 | 2 40 7 . Influence Increases 633 | 20 508 105 . Destroy 0b10 Robot/C 440 | 20 340 80 . Destroy 0b10 Robot/NC 25 | . 20 5 . Destroy Leader 106 | . 86 20 . Successful Hack 45 | . 45 . . Destroy Structure 2 | . 2 . . Lose Combat Pursuer 15 | . 15 . . Influence Decreases 633 | . 403 230 . Entered New Map 84 | . 7 77 . Time Decay 499 | . 356 143 . Lost Part 50 | . 40 10 . Squads Dispatched 5 | . 5 . . Investigation 3 | . 3 . . Extermination . | . . . . Reinforcement 2 | . 2 . . Assault . | . . . . Garrison . | . . . . Intercept . | . . . . Searches Triggered . | . . . . Construction Impeded . | . . . . Haulers Reinforced . | . . . . Active Scanning Responses . | . . . . Cargo Convoy Interrupts . | . . . . Stealth | -11 -10 -10 -10 --------- Run | Yrd Mat Min Sub Distress Signals 2 | . 2 . . Communications Jammed . | . . . . Distress Signals . | . . . . Times Spotted 37 | 1 29 5 2 Peak Tracking Total 8 | 1 8 2 2 Tactical Retreats 1 | . 1 . . Traps | -11 -10 -10 -10 ------- Run | Yrd Mat Min Sub Traps Triggered 1 | . 1 . . Indirectly . | . . . . Trap Hack Attempts . | . . . . Triggered . | . . . . Disarmed . | . . . . Reprogrammed . | . . . . Reused . | . . . . Traps Extracted . | . . . . Installed . | . . . . Triggered . | . . . . Machines | -11 -10 -10 -10 ---------- Run | Yrd Mat Min Sub Machines Disabled . | . . . . Max in Single Turn . | . . . . Machines Repaired . | . . . . Machines Dismantled . | . . . . Machines Sabotaged . | . . . . Overloaded Fab Kills . | . . . . Hacking | -11 -10 -10 -10 --------- Run | Yrd Mat Min Sub Machines Accessed 9 | . 9 . . Terminals 6 | . 6 . . Fabricators . | . . . . Repair Stations 1 | . 1 . . Recycling Units 2 | . 2 . . Scanalyzers . | . . . . Garrison Access . | . . . . Total Hacks 33 | . 33 . . Successful 13 | . 13 . . Failed 20 | . 20 . . Catastrophic 7 | . 7 . . Database Lockouts . | . . . . Manual 15 | . 15 . . Terminals 24 | . 24 . . Fabricators . | . . . . Repair Stations 4 | . 4 . . Recycling Units 5 | . 5 . . Scanalyzers . | . . . . Garrison Access . | . . . . Terminal Hacks 12 | . 12 . . Record 2 | . 2 . . Robot Analysis 1 | . 1 . . Prototype ID Bank 2 | . 2 . . Branch Access Points 1 | . 1 . . Emergency Access Points 1 | . 1 . . Alert Level 1 | . 1 . . Locate Traps 2 | . 2 . . Hauler Manifests 1 | . 1 . . Registered Components 1 | . 1 . . Fabricator Hacks . | . . . . Repair Station Hacks 1 | . 1 . . Scan Component 1 | . 1 . . Recycling Unit Hacks . | . . . . Scanalyzer . | . . . . Garrison Access Hacks . | . . . . Unauthorized Hacks . | . . . . Terminals . | . . . . Fabricators . | . . . . Repair Stations . | . . . . Recycling Units . | . . . . Scanalyzers . | . . . . Garrison Access . | . . . . Data Cores Recovered . | . . . . Used . | . . . . Hacking Detections 9 | . 9 . . Full Trace Events 8 | . 8 . . Feedback Events . | . . . . Feedback Blocked . | . . . . Robot Schematics Acquired . | . . . . Robots Built . | . . . . Authchips . | . . . . Time . | . . . . Total Robot Build Rating . | . . . . Part Schematics Acquired . | . . . . Parts Built . | . . . . Authchips . | . . . . Time . | . . . . Total Part Build Rating . | . . . . Part Studies Acquired . | . . . . Parts Repaired . | . . . . Time . | . . . . Parts Recycled . | . . . . Recycled Matter . | . . . . Retrieved Matter . | . . . . Retrieved Components . | . . . . Parts Scanalyzed . | . . . . Part Schematics Acquired . | . . . . Parts Damaged . | . . . . Bothacking | -11 -10 -10 -10 ------------ Run | Yrd Mat Min Sub Used RIF Installer . | . . . . Robots Hacked . | . . . . Non-combat . | . . . . Combat . | . . . . Robot Hacks Applied . | . . . . Relay Couplers Released . | . . . . Fabnet Peak Effective % . | . . . . Robots Rewired . | . . . . Allies Hacked . | . . . . Hacks Repelled . | . . . . Allies | -11 -10 -10 -10 -------- Run | Yrd Mat Min Sub Total Allies 3 | . . 3 . Largest Group 3 | . . 3 2 Highest-Rated Group 40 | . . 40 24 Highest-Rated Ally 16 | . . 16 16 Total Orders 7 | . . 7 . ROAM 2 | . . 2 . FOLLOW 2 | . . 2 . GUARD 3 | . . 3 . Ally Attacks 5 | . . . 5 Total Damage 54 | . . . 54 Kills . | . . . . Allies Corrupted . | . . . . Allies Melted . | . . . . Intel | -11 -10 -10 -10 ------- Run | Yrd Mat Min Sub Active Infowar (turns) . | . . . . Robot Analysis Total 1 | . 1 . . Derelict Logs Recovered 2 | . . 2 . Drone Launches . | . . . . Drone Recoveries . | . . . . Exploration | -11 -10 -10 -10 ------------- Run | Yrd Mat Min Sub Turns Passed 2637 | 92 1488 956 101 Spaces Moved 1461 | 65 801 545 50 Core 22 | 22 . . . Treads 1286 | . 691 545 50 Legs 54 | 43 11 . . Wheels 99 | . 99 . . Hover . | . . . . Flight . | . . . . Fastest Speed 50 | 50 100 160 160 Average Speed 152 | 96 152 160 160 Slowest Speed 190 | 120 190 160 160 Overloaded Moves . | . . . . Propulsion Burnouts . | . . . . Robots Hopped . | . . . . Potential Cave-ins . | . . . . Cave-ins Triggered . | . . . . Exploration Rate (%) 47 | 9 91 82 8 Regions Visited 3 Branch Regions 2 Pre-discovered Areas . | . . . . Known Exits Taken 1 | . 1 . . Unknown Exits Taken 2 | 1 . 1 . Scrap Searched 1 | . . 1 . Spaces Dug . | . . . . Terrain Destroyed . | . . . . Melee . | . . . . Projectile . | . . . . AOE . | . . . . Terrain Rammed . | . . . . Walls Destroyed . | . . . . Machines Disabled . | . . . . Actions | -11 -10 -10 -10 --------- Run | Yrd Mat Min Sub Total 1731 | 85 971 611 64 Wait 118 | 2 53 55 8 Move 1458 | 64 800 544 50 Hop . | . . . . Pick Up 42 | 8 33 1 . Fast Attach 1 | . 1 . . Attach 11 | 5 4 2 . Detach . | . . . . Swap 10 | 1 7 . 2 Drop 17 | . 17 . . Fire 74 | 5 56 9 4 Melee . | . . . . Ram . | . . . . Kick . | . . . . Crush . | . . . . Escape Stasis . | . . . . Rewire . | . . . . Trap . | . . . . Miscellaneous . | . . . . Route ------- -11/Scrapyard -10/Materials (discovered 4 exits: [*Mat x3] / *Min) -10/Mines -10/Subcaves History --------- Turn | Location | Event 2 | -11/Scrapyard | Met Revision 17 64 | -11/Scrapyard | Discovered new exit (range 8) 93 | -11/Scrapyard | Entered Materials 307 | -10/Materials | Build established: Mutant 328 | -10/Materials | Core integrity fell below 50% 450 | -10/Materials | Identified exit to Mines 587 | -10/Materials | Discovered new exit (range 10) 758 | -10/Materials | Discovered new exit (range 15) 1004 | -10/Materials | Discovered new exit (range 14) 1581 | -10/Materials | Entered Mines 1608 | -10/Mines | Learned location of 2 exits from Materials 1683 | -10/Mines | Met a Derelict bent on vengeance 1705 | -10/Mines | Core integrity fell below 20% 1729 | -10/Mines | A weapon hastily lodged in a ceiling crevice suddenly fell to the ground 1931 | -10/Mines | Learned location of 1 exit from Materials 2427 | -10/Mines | Discovered new exit (range 9) 2457 | -10/Mines | Assisted by bots powering up and referring to "LRC-V3" 2537 | -10/Mines | Entered Subcaves 2537 | -10/Subcaves | Accompanied by 2 allies 2538 | -10/Subcaves | Approached by a straggling Scientist 2638 | -10/Subcaves | Destroyed by 52-ZMH(R) with Subdweller Laser Last Messages --------------- LOCATION=UNKNOWN AMBIENT_HEAT=-10 GOAL=ESCAPE 02538_ 6E-GWN(c): "Thank the algorithms! I was beginning to lose hope I'd never make it past all the Subs lurking out here." 02541_ 6E-GWN(c): "Hey, let me tag along and I can get us both out of this nasty situation. At least I think I can... The group I got separated from was talking about a shortcut back to the UFD." 02578_ ZZ-VQT(O) puts together Sub. Machine Gun. 6E-GWN(c): "We're getting close, I can feel it." 02628_ Trooper 1a destroyed. 02630_ Subatomizers dissect the Lgt. Nuclear Core. 02630_ Mercenary 1a destroyed. 02634_ Sub. Laser melted. 02634_ 7Q-HV6(R) destroyed. 02637_ 52-ZMH(R) suffers critical hit (Burn). Map ----- +----------------------------------------------------+ | ????????????????????????????????????????????? | | ????????????????????????????????????????????? | | ????????????????????????????????????????????? | | ????????????????????????????????????????????? | | ????????????????????????????????????????????? | | ????????????????????????????????????????????? | | ????????????????????????????????????????????? | | ????????????????????????????????????????????? | | ????????????????????????????????????????????? | | ????????????????????????????????????????????? | | ????????????????????????????????????????????? | | ????????????????????????????????????????????? | | ????????????????????????????????????????????? | | ?????????????? ????????????????????????????? | | ?????????????? ???????##???????????????????? | | ?????????????# #???###?# ##?????????????????? | | ????????????## #?## #?# ##????????????????? | | ????????????# ## ??# ##???????????????? | | ????????????# ???# ##??????????????? | | ????????????# ????# #??????????????? | | ##?????????## % #?????# ##?????????????? | | ##???????## #?????## #?????????????? | | ###?????# #????## #??????????????? | | % ####### #????# #??????????????? | | # ## ## #????# % #??????????????? | | ####?# @ #??????????????? | | ### ##??????????????? | | ## # # ## ###???????????????? | | ######## ##????????????????? | | #??????## c ##???????????????? | | ### #???# ##??????????????? | | ??# ##???# #??????????????? | | ??# #??????????????? | | ??# % && ##??????????????? | | ??? # # # %*%[ ###???????????????? | | ??? ########## ###%== ##?????????????????? | | ??? ##????????###?##!* #??????????????????? | | ???####?????????????? = ##??????????????????? | | ????????????????????? R#???????????????????? | | ????????????????????? #???????????????????? | | ????????????????????? ???????????????????? | | ????????????????????? ??????????????????? | | ?????????????????????"" ??????????????????? | | ??????????????????????""" ??????????????????? | | ???????????????????????""""?????????????????? | | ????????????????????????????????????????????? | | ????????????????????????????????????????????? | | ????????????????????????????????????????????? | | ????????????????????????????????????????????? | | ????????????????????????????????????????????? | +----------------------------------------------------+ Best States ------------- Heat Dissipation 39 Energy Generation 10 Energy Capacity 250 Matter Stores 300 Matter Capacity 300 Sight Range 16 Terrain Scan Density 10 Armor Coverage 150 Evasion (%) 55 Recoil Reduction 2 Item Schematics ----------------- None Robot Schematics ------------------ None Fabricated ------------ Nothing Repaired ---------- Nothing Studied --------- None Alien Tech Used ----------------- None Achievements -------------- Crack Shot DATA ERROR: Steam Global Achievement% Shopping List Storm Trooper Challenges ------------ None Game ------ Seed PartitionDroneSystem Manual? 0 Play Time 01:04:24 Cumulative 3.6 hours Start 2026.02.08 @ 02:26:35 End 2026.02.08 @ 05:21:11 Sessions 3 Manual Loads 0 Difficulty Rogue Special Mode None Game No. 2 Rogue 2 Adventurer 0 Explorer 0 Win Type - Total 0 Types 0/0/0/0/0/0/0/0/0/0 Lore% 0 Gallery% 2 Achievement% 2 Wizard Run 0 Options --------- Layout 1 ASCII 0 Keyboard 0 Movement Mouse Keybinds 0 Fullscreen 1 Font 24/Smallcaps Map View 50x35 Zoom Use 7% Tactical HUD 1 Map Filters NONE Filters NONE Steam 1 RUN: b55c8ac9-0a0e-411e-a1bc-94268e50ed2d